[Event "*** Titled Tuesday Blitz"]
[Site "Chess.com"]
[Date "2019.07.02"]
[Round "3"]
[White "Galileo22"]
[Black "SmoothAsAHedgehog"]
[Result "0-1"]
[WhiteElo "2351"]
[BlackElo "2608"]
[TimeControl "180+2"]
[EndTime "13:43:33 PDT"]
[Termination "SmoothAsAHedgehog won by checkmate"]

1. d4 {[%clk 0:03:01.6]} 1... Nf6 {[%clk 0:02:58.3]} 2. Nf3 {[%clk 0:03:02.5]}
2... e6 {[%clk 0:02:56.2]} 3. e3 {[%clk 0:03:02.7]} 3... c5 {[%clk 0:02:56.8]}
4. Bd3 {[%clk 0:03:02.8]} 4... b6 {[%clk 0:02:56.7]} 5. O-O {[%clk 0:03:02.9]}
5... Bb7 {[%clk 0:02:57.9]} 6. Nbd2 {[%clk 0:03:02.7]} 6... Be7 {[%clk
0:02:58.3]} 7. c3 {[%clk 0:03:02.4]} 7... cxd4 {[%clk 0:02:57.9]} 8. cxd4 {[%clk
0:03:02.3]} 8... d6 {[%clk 0:02:57.7]} 9. e4 {[%clk 0:02:58.9]} 9... Nbd7 {[%clk
0:02:56.2]} 10. Re1 {[%clk 0:02:59.3]} 10... O-O {[%clk 0:02:56.5]} 11. b3
{[%clk 0:02:59.3]} 11... a6 {[%clk 0:02:57.3]} 12. Bb2 {[%clk 0:03:00]} 12... b5
{[%clk 0:02:56.7]} 13. Nf1 {[%clk 0:02:56.7]} 13... Qb6 {[%clk 0:02:54]} 14. Ng3
{[%clk 0:02:56.7]} 14... Rac8 {[%clk 0:02:54.1]} 15. Qd2 {[%clk 0:02:55.6]}
15... Qa7 {[%clk 0:02:41.9]} 16. Rad1 {[%clk 0:02:48.7]} 16... Qa8 {[%clk
0:02:42.4]} 17. Qe2 {[%clk 0:02:43]} 17... Rfd8 {[%clk 0:02:27.6]} 18. Nd2
{[%clk 0:02:20]} 18... Nf8 {[%clk 0:02:17.6]} 19. f3 {[%clk 0:02:01.9]} 19...
Ng6 {[%clk 0:02:17.5]} 20. Qf2 {[%clk 0:01:58.5]} 20... Nf4 {[%clk 0:02:10.3]}
21. Bb1 {[%clk 0:01:58.2]} 21... a5 {[%clk 0:02:02.2]} 22. a3 {[%clk 0:01:54.2]}
22... b4 {[%clk 0:01:44.7]} 23. a4 {[%clk 0:01:53.8]} 23... Ba6 {[%clk
0:01:44.6]} 24. Ndf1 {[%clk 0:01:53.5]} 24... h5 {[%clk 0:01:34.1]} 25. Ne3
{[%clk 0:01:40.1]} 25... Rc7 {[%clk 0:01:21.1]} 26. Kh1 {[%clk 0:01:20.1]} 26...
Rdc8 {[%clk 0:01:20.4]} 27. Ngf1 {[%clk 0:01:10.9]} 27... Ng6 {[%clk 0:00:54.2]}
28. Nd2 {[%clk 0:00:41.9]} 28... Nf4 {[%clk 0:00:20.7]} 29. Ndc4 {[%clk
0:00:23.8]} 29... Bb7 {[%clk 0:00:18.7]} 30. Nb6 {[%clk 0:00:24]} 30... Qa7
{[%clk 0:00:19.7]} 31. Nxc8 {[%clk 0:00:24.6]} 31... Rxc8 {[%clk 0:00:21.6]} 32.
g3 {[%clk 0:00:25]} 32... Ng6 {[%clk 0:00:22]} 33. Kg1 {[%clk 0:00:25.3]} 33...
h4 {[%clk 0:00:22.2]} 34. Rc1 {[%clk 0:00:25.8]} 34... Rxc1 {[%clk 0:00:21.6]}
35. Rxc1 {[%clk 0:00:27.7]} 35... hxg3 {[%clk 0:00:21.9]} 36. hxg3 {[%clk
0:00:29.6]} 36... Bd8 {[%clk 0:00:19.7]} 37. Kg2 {[%clk 0:00:27.9]} 37... Bb6
{[%clk 0:00:20.5]} 38. Qd2 {[%clk 0:00:27.7]} 38... Nh5 {[%clk 0:00:20]} 39. Rh1
{[%clk 0:00:26]} 39... Nf6 {[%clk 0:00:19.6]} 40. Nc4 {[%clk 0:00:22.6]} 40...
Bd8 {[%clk 0:00:18.3]} 41. Nxd6 {[%clk 0:00:21.8]} 41... Ba8 {[%clk 0:00:19.1]}
42. Nc4 {[%clk 0:00:21.6]} 42... Bc7 {[%clk 0:00:19.1]} 43. Qf2 {[%clk
0:00:22.4]} 43... Qb8 {[%clk 0:00:19.4]} 44. e5 {[%clk 0:00:22.2]} 44... Nd5
{[%clk 0:00:20.5]} 45. Be4 {[%clk 0:00:21.9]} 45... Nde7 {[%clk 0:00:20.6]} 46.
Kg1 {[%clk 0:00:22.2]} 46... Nd5 {[%clk 0:00:16.1]} 47. Qh2 {[%clk 0:00:21.6]}
47... Kf8 {[%clk 0:00:14.8]} 48. Qh7 {[%clk 0:00:18.5]} 48... Nde7 {[%clk
0:00:13]} 49. Bc1 {[%clk 0:00:16.7]} 49... Bxe4 {[%clk 0:00:12.8]} 50. fxe4
{[%clk 0:00:18.6]} 50... Qb7 {[%clk 0:00:14.3]} 51. Be3 {[%clk 0:00:15.7]} 51...
Qxe4 {[%clk 0:00:14]} 52. Qh2 {[%clk 0:00:16.2]} 52... Qb1+ {[%clk 0:00:13.7]}
53. Kg2 {[%clk 0:00:14.7]} 53... Qxb3 {[%clk 0:00:14.5]} 54. Rc1 {[%clk
0:00:16]} 54... Qa2+ {[%clk 0:00:14.6]} 55. Kh3 {[%clk 0:00:15.5]} 55... Qxa4
{[%clk 0:00:15.6]} 56. Qg2 {[%clk 0:00:15.9]} 56... Kg8 {[%clk 0:00:15.5]} 57.
Kh2 {[%clk 0:00:16]} 57... Nf5 {[%clk 0:00:16.1]} 58. Bf2 {[%clk 0:00:16.5]}
58... b3 {[%clk 0:00:16.1]} 59. Nb2 {[%clk 0:00:14.1]} 59... Qa2 {[%clk
0:00:16.3]} 60. Rxc7 {[%clk 0:00:10.1]} 60... Qxb2 {[%clk 0:00:16.9]} 61. Rc8+
{[%clk 0:00:11.3]} 61... Kh7 {[%clk 0:00:18]} 62. Rb8 {[%clk 0:00:11.1]} 62...
a4 {[%clk 0:00:18.6]} 63. Be1 {[%clk 0:00:08.9]} 63... Qxd4 {[%clk 0:00:18.4]}
64. Rb4 {[%clk 0:00:07.5]} 64... Qxe5 {[%clk 0:00:16.2]} 65. Bf2 {[%clk
0:00:08]} 65... b2 {[%clk 0:00:16.1]} 66. Bg1 {[%clk 0:00:05.8]} 66... a3 {[%clk
0:00:17.1]} 67. Rb3 {[%clk 0:00:06.6]} 67... Qe1 {[%clk 0:00:16.7]} 68. Rxa3
{[%clk 0:00:06.7]} 68... b1=Q {[%clk 0:00:17.8]} 69. Rf3 {[%clk 0:00:07.5]}
69... Qee4 {[%clk 0:00:17.5]} 70. Qh3+ {[%clk 0:00:07.9]} 70... Nh6 {[%clk
0:00:17.6]} 71. Qg2 {[%clk 0:00:09.8]} 71... Qbb7 {[%clk 0:00:16.6]} 72. Rf2
{[%clk 0:00:09.6]} 72... Qxg2+ {[%clk 0:00:14.1]} 73. Rxg2 {[%clk 0:00:11.5]}
73... Ng4+ {[%clk 0:00:12.5]} 74. Kh3 {[%clk 0:00:12.4]} 74... f5 {[%clk
0:00:13.6]} 75. Bd4 {[%clk 0:00:12.3]} 75... Qe4 {[%clk 0:00:13.9]} 76. Ba7
{[%clk 0:00:12.4]} 76... Qe1 {[%clk 0:00:14.7]} 77. Rg1 {[%clk 0:00:12.6]} 77...
Qe2 {[%clk 0:00:14.9]} 78. Rg2 {[%clk 0:00:13.1]} 78... Qf1 {[%clk 0:00:16]} 79.
Bg1 {[%clk 0:00:13.4]} 79... N6e5 {[%clk 0:00:16.9]} 80. Bh2 {[%clk 0:00:13]}
80... Qh1 {[%clk 0:00:17]} 81. Ra2 {[%clk 0:00:11.8]} 81... Nf3 {[%clk
0:00:17.9]} 82. Rg2 {[%clk 0:00:11.6]} 82... Ngxh2 {[%clk 0:00:17.5]} 83. Rg1
{[%clk 0:00:09.7]} 83... Qxg1 {[%clk 0:00:15.8]} 84. g4 {[%clk 0:00:10.3]} 84...
Qxg4# {[%clk 0:00:17.7]} 0-1

[Event "*** Titled Tuesday Blitz"]
[Site "Chess.com"]
[Date "2019.07.02"]
[Round "3"]
[White "dcremisi"]
[Black "JozefKneht"]
[Result "1/2-1/2"]
[WhiteElo "2247"]
[BlackElo "2342"]
[TimeControl "180+2"]
[EndTime "13:43:39 PDT"]
[Termination "Game drawn by stalemate"]

1. Nf3 {[%clk 0:03:01.9]} 1... d5 {[%clk 0:02:59.9]} 2. d4 {[%clk 0:03:02.3]}
2... Nf6 {[%clk 0:02:59.8]} 3. c4 {[%clk 0:03:03.5]} 3... e6 {[%clk 0:03:00.8]}
4. Nc3 {[%clk 0:03:03.8]} 4... Be7 {[%clk 0:03:01.5]} 5. cxd5 {[%clk 0:02:55.6]}
5... exd5 {[%clk 0:03:01.8]} 6. Bg5 {[%clk 0:02:56.9]} 6... O-O {[%clk
0:03:01.9]} 7. e3 {[%clk 0:02:58.3]} 7... c6 {[%clk 0:03:02.9]} 8. Bd3 {[%clk
0:02:56.1]} 8... Nbd7 {[%clk 0:03:04.3]} 9. O-O {[%clk 0:02:56.8]} 9... Re8
{[%clk 0:03:05.8]} 10. Qc2 {[%clk 0:02:57.9]} 10... Nf8 {[%clk 0:03:06.9]} 11.
Ne5 {[%clk 0:02:56.8]} 11... Ng4 {[%clk 0:03:06.7]} 12. Bxe7 {[%clk 0:02:54.6]}
12... Rxe7 {[%clk 0:03:07.4]} 13. Nxg4 {[%clk 0:02:56.2]} 13... Bxg4 {[%clk
0:03:07.5]} 14. f3 {[%clk 0:02:56.8]} 14... Bh5 {[%clk 0:03:04.7]} 15. Rae1
{[%clk 0:02:57.3]} 15... Bg6 {[%clk 0:03:03.4]} 16. Bxg6 {[%clk 0:02:58.4]}
16... Nxg6 {[%clk 0:03:02]} 17. Qf2 {[%clk 0:02:58.4]} 17... Qd7 {[%clk
0:02:53.8]} 18. e4 {[%clk 0:02:57.1]} 18... Nf4 {[%clk 0:02:38]} 19. exd5 {[%clk
0:02:54.1]} 19... Rxe1 {[%clk 0:02:37.7]} 20. Qxe1 {[%clk 0:02:51.2]} 20... Nxd5
{[%clk 0:02:32]} 21. Qd2 {[%clk 0:02:52.2]} 21... Rd8 {[%clk 0:02:31.3]} 22. Re1
{[%clk 0:02:52.9]} 22... Nf6 {[%clk 0:02:25.7]} 23. Ne4 {[%clk 0:02:39.8]} 23...
Qxd4+ {[%clk 0:01:48.8]} 24. Qxd4 {[%clk 0:02:40.1]} 24... Rxd4 {[%clk
0:01:48.1]} 25. Nxf6+ {[%clk 0:02:42]} 25... gxf6 {[%clk 0:01:48.3]} 26. Re2
{[%clk 0:02:43.5]} 26... Kg7 {[%clk 0:01:36.8]} 27. Kf2 {[%clk 0:02:40.1]} 27...
f5 {[%clk 0:01:36.3]} 28. Ke1 {[%clk 0:02:39.7]} 28... Kf6 {[%clk 0:01:36.3]}
29. Re8 {[%clk 0:02:40.4]} 29... Rd7 {[%clk 0:01:35.7]} 30. Ra8 {[%clk
0:02:41.2]} 30... a6 {[%clk 0:01:34.4]} 31. Rb8 {[%clk 0:02:42.3]} 31... Ke5
{[%clk 0:01:32.3]} 32. Ke2 {[%clk 0:02:41.3]} 32... f4 {[%clk 0:01:26]} 33. Rh8
{[%clk 0:02:39]} 33... f6 {[%clk 0:01:26.5]} 34. Re8+ {[%clk 0:02:40]} 34... Kf5
{[%clk 0:01:26.4]} 35. Rb8 {[%clk 0:02:40.8]} 35... Rg7 {[%clk 0:01:25.2]} 36.
Kf2 {[%clk 0:02:41]} 36... Rc7 {[%clk 0:01:23.6]} 37. Ke2 {[%clk 0:02:41.2]}
37... c5 {[%clk 0:01:22.3]} 38. Kf2 {[%clk 0:02:34.2]} 38... c4 {[%clk
0:01:22.2]} 39. Ke2 {[%clk 0:02:35.5]} 39... Re7+ {[%clk 0:01:19.1]} 40. Kf2
{[%clk 0:02:33.6]} 40... Rc7 {[%clk 0:01:19]} 41. Ke2 {[%clk 0:02:31.4]} 41...
b5 {[%clk 0:01:15.7]} 42. Rb6 {[%clk 0:02:29.5]} 42... Re7+ {[%clk 0:01:16.2]}
43. Kd2 {[%clk 0:02:22.1]} 43... Rg7 {[%clk 0:01:16]} 44. Rxa6 {[%clk
0:02:21.4]} 44... Rxg2+ {[%clk 0:01:16]} 45. Kc3 {[%clk 0:02:22.9]} 45... Rf2
{[%clk 0:01:17.1]} 46. Ra5 {[%clk 0:02:23.4]} 46... Rxf3+ {[%clk 0:01:17.7]} 47.
Kb4 {[%clk 0:02:24.4]} 47... Rf2 {[%clk 0:01:17]} 48. Rxb5+ {[%clk 0:02:25.9]}
48... Kg4 {[%clk 0:01:17.9]} 49. Kxc4 {[%clk 0:02:27.5]} 49... f3 {[%clk
0:01:17.1]} 50. a4 {[%clk 0:02:29.1]} 50... Rc2+ {[%clk 0:01:14.5]} 51. Kd3
{[%clk 0:02:28.1]} 51... f2 {[%clk 0:01:10.4]} 52. Rb4+ {[%clk 0:02:25.6]} 52...
Kf3 {[%clk 0:01:09.4]} 53. Kxc2 {[%clk 0:02:19.7]} 53... f1=Q {[%clk 0:01:09]}
54. a5 {[%clk 0:02:16.3]} 54... Qa6 {[%clk 0:01:04.2]} 55. Ra4 {[%clk
0:01:59.9]} 55... Qc6+ {[%clk 0:01:03.6]} 56. Kb3 {[%clk 0:02:00.7]} 56... Qb5+
{[%clk 0:01:04.6]} 57. Ka3 {[%clk 0:02:01.8]} 57... Qa6 {[%clk 0:00:57.5]} 58.
b4 {[%clk 0:01:59.5]} 58... Ke3 {[%clk 0:00:56.8]} 59. b5 {[%clk 0:01:53.3]}
59... Qxb5 {[%clk 0:00:57.3]} 60. a6 {[%clk 0:01:55.2]} 60... Qc5+ {[%clk
0:00:58]} 61. Kb3 {[%clk 0:01:55.8]} 61... Qa7 {[%clk 0:00:59]} 62. Kc4 {[%clk
0:01:57]} 62... f5 {[%clk 0:01:00.1]} 63. Kb5 {[%clk 0:01:53.6]} 63... f4 {[%clk
0:01:01.1]} 64. Ra3+ {[%clk 0:01:55]} 64... Kd4 {[%clk 0:01:00.6]} 65. Ra4+
{[%clk 0:01:55.9]} 65... Ke5 {[%clk 0:01:01.2]} 66. Kc4 {[%clk 0:01:53.3]} 66...
f3 {[%clk 0:01:01]} 67. Kd3 {[%clk 0:01:54.2]} 67... f2 {[%clk 0:01:01.7]} 68.
Ke2 {[%clk 0:01:52.6]} 68... Kd5 {[%clk 0:00:53.8]} 69. Kf1 {[%clk 0:01:40.2]}
69... Kc5 {[%clk 0:00:51.8]} 70. Ra2 {[%clk 0:01:38.8]} 70... Kb5 {[%clk
0:00:50.7]} 71. Rb2+ {[%clk 0:01:36.2]} 71... Kc4 {[%clk 0:00:50.5]} 72. Rxf2
{[%clk 0:01:33.3]} 72... Qxa6 {[%clk 0:00:51.2]} 73. Kg2 {[%clk 0:01:30.7]}
73... Kd4 {[%clk 0:00:51.4]} 74. Rf3 {[%clk 0:01:30.7]} 74... Qe2+ {[%clk
0:00:50.6]} 75. Kg3 {[%clk 0:01:31.2]} 75... Ke4 {[%clk 0:00:50.9]} 76. Rf2
{[%clk 0:01:13]} 76... Qe3+ {[%clk 0:00:45.9]} 77. Kg2 {[%clk 0:01:14.2]} 77...
Qg5+ {[%clk 0:00:46.5]} 78. Kf1 {[%clk 0:01:15.2]} 78... Qh4 {[%clk 0:00:44]}
79. Kg2 {[%clk 0:01:15.5]} 79... Qg4+ {[%clk 0:00:44.2]} 80. Kf1 {[%clk
0:01:16.4]} 80... Ke3 {[%clk 0:00:43.9]} 81. Rf8 {[%clk 0:01:05.6]} 81... Qc4+
{[%clk 0:00:41.4]} 82. Kg2 {[%clk 0:01:01.1]} 82... Qa2+ {[%clk 0:00:37.6]} 83.
Kg3 {[%clk 0:01:00.7]} 83... Qe6 {[%clk 0:00:33.2]} 84. Rf3+ {[%clk 0:01:00.6]}
84... Ke4 {[%clk 0:00:33.7]} 85. Rf4+ {[%clk 0:00:59.9]} 85... Ke5 {[%clk
0:00:34.4]} 86. Rf3 {[%clk 0:01:00.7]} 86... Qg6+ {[%clk 0:00:34]} 87. Kf2
{[%clk 0:01:00.2]} 87... h5 {[%clk 0:00:35]} 88. Rg3 {[%clk 0:00:58.2]} 88...
Qf5+ {[%clk 0:00:35]} 89. Kg2 {[%clk 0:00:58.9]} 89... Ke4 {[%clk 0:00:33.2]}
90. Ra3 {[%clk 0:00:26.2]} 90... Qd7 {[%clk 0:00:26.1]} 91. Rg3 {[%clk
0:00:23.3]} 91... h4 {[%clk 0:00:24.4]} 92. Rg5 {[%clk 0:00:16.7]} 92... Qd2+
{[%clk 0:00:23.8]} 93. Kh3 {[%clk 0:00:18.2]} 93... Qxg5 {[%clk 0:00:25.2]}
1/2-1/2

[Event "*** Titled Tuesday Blitz"]
[Site "Chess.com"]
[Date "2019.07.02"]
[Round "3"]
[White "StephenDedalus83"]
[Black "VishnuPrasanna"]
[Result "0-1"]
[WhiteElo "2802"]
[BlackElo "2817"]
[TimeControl "180+2"]
[EndTime "13:43:57 PDT"]
[Termination "VishnuPrasanna won by resignation"]

1. e4 {[%clk 0:03:01.9]} 1... c5 {[%clk 0:02:32.4]} 2. Nf3 {[%clk 0:03:01.5]}
2... d6 {[%clk 0:02:33.7]} 3. d4 {[%clk 0:03:02.2]} 3... cxd4 {[%clk 0:02:35.2]}
4. Nxd4 {[%clk 0:03:03.8]} 4... Nf6 {[%clk 0:02:36.7]} 5. Nc3 {[%clk 0:03:05.3]}
5... a6 {[%clk 0:02:38.3]} 6. g3 {[%clk 0:03:05.9]} 6... e5 {[%clk 0:02:39.2]}
7. Nde2 {[%clk 0:03:06.5]} 7... Be6 {[%clk 0:02:40.7]} 8. Bg2 {[%clk 0:03:06.8]}
8... Nbd7 {[%clk 0:02:42.3]} 9. O-O {[%clk 0:03:06.8]} 9... Be7 {[%clk
0:02:43.8]} 10. a4 {[%clk 0:03:07.3]} 10... Rc8 {[%clk 0:02:44.8]} 11. h3 {[%clk
0:03:04.6]} 11... h5 {[%clk 0:02:46.1]} 12. Be3 {[%clk 0:02:59.6]} 12... Nf8
{[%clk 0:02:46.8]} 13. a5 {[%clk 0:02:57.5]} 13... Qd7 {[%clk 0:02:47.7]} 14.
Kh2 {[%clk 0:02:53.5]} 14... h4 {[%clk 0:02:16.7]} 15. g4 {[%clk 0:02:54.1]}
15... Ng6 {[%clk 0:02:11.9]} 16. Na4 {[%clk 0:01:55.5]} 16... Bd8 {[%clk
0:02:11.2]} 17. Nb6 {[%clk 0:01:40.8]} 17... Bxb6 {[%clk 0:02:10.6]} 18. Bxb6
{[%clk 0:01:40.8]} 18... d5 {[%clk 0:02:02.4]} 19. exd5 {[%clk 0:01:40.4]} 19...
Nxd5 {[%clk 0:02:02.8]} 20. Bxd5 {[%clk 0:01:38]} 20... Bxd5 {[%clk 0:01:54.9]}
21. Nc3 {[%clk 0:01:38.5]} 21... Bc6 {[%clk 0:01:35.9]} 22. Qxd7+ {[%clk
0:01:38.6]} 22... Kxd7 {[%clk 0:01:37.8]} 23. Rad1+ {[%clk 0:00:52]} 23... Ke6
{[%clk 0:01:37.3]} 24. Rd2 {[%clk 0:00:52.2]} 24... Rhf8 {[%clk 0:01:34.3]} 25.
Rfd1 {[%clk 0:00:50.8]} 25... f6 {[%clk 0:01:31.6]} 26. Rd6+ {[%clk 0:00:39.3]}
26... Kf7 {[%clk 0:01:32.9]} 27. Be3 {[%clk 0:00:39.6]} 27... Rfe8 {[%clk
0:01:30.8]} 28. R1d2 {[%clk 0:00:38.7]} 28... Ne7 {[%clk 0:01:30.2]} 29. Kg1
{[%clk 0:00:29.5]} 29... g5 {[%clk 0:01:26.2]} 30. Bb6 {[%clk 0:00:27.3]} 30...
Ng6 {[%clk 0:01:27]} 31. Be3 {[%clk 0:00:24.4]} 31... Re6 {[%clk 0:01:25.8]} 32.
Rxe6 {[%clk 0:00:23.5]} 32... Kxe6 {[%clk 0:01:26.3]} 33. Na2 {[%clk 0:00:24.2]}
33... Be4 {[%clk 0:01:25.3]} 34. Nb4 {[%clk 0:00:23.9]} 34... Ne7 {[%clk
0:01:24.1]} 35. c3 {[%clk 0:00:24.4]} 35... Nd5 {[%clk 0:01:24.1]} 36. Nxd5
{[%clk 0:00:24.9]} 36... Bxd5 {[%clk 0:01:26]} 37. Bb6 {[%clk 0:00:25.8]} 37...
Rc4 {[%clk 0:01:27]} 38. Rd3 {[%clk 0:00:24.5]} 38... Ra4 {[%clk 0:01:26.9]} 39.
Rd1 {[%clk 0:00:25.5]} 39... Ra2 {[%clk 0:01:28.1]} 40. b4 {[%clk 0:00:26.6]}
40... Rc2 {[%clk 0:01:29.5]} 41. Bc5 {[%clk 0:00:22.4]} 41... Rxc3 {[%clk
0:01:30.3]} 42. Kh2 {[%clk 0:00:23.5]} 42... Rc2 {[%clk 0:01:30.7]} 43. Kg1
{[%clk 0:00:22.2]} 43... Rb2 {[%clk 0:01:31.1]} 44. Kh2 {[%clk 0:00:23]} 44...
Rb3 {[%clk 0:01:31.2]} 45. Re1 {[%clk 0:00:22.1]} 45... Bc6 {[%clk 0:01:30.2]}
46. Rd1 {[%clk 0:00:23.1]} 46... Bd5 {[%clk 0:01:31.6]} 47. Re1 {[%clk
0:00:24.3]} 47... Rd3 {[%clk 0:01:33]} 48. Rc1 {[%clk 0:00:24.6]} 48... Bc6
{[%clk 0:01:34]} 49. Re1 {[%clk 0:00:25.5]} 49... Kd5 {[%clk 0:01:35.1]} 50. Rc1
{[%clk 0:00:26.4]} 50... Ke4 {[%clk 0:01:34.5]} 51. Re1+ {[%clk 0:00:26.9]}
51... Kf4 {[%clk 0:01:35.2]} 52. Be3+ {[%clk 0:00:26.4]} 52... Kf3 {[%clk
0:01:36]} 53. Bc5 {[%clk 0:00:27.4]} 53... Rd2 {[%clk 0:01:31.5]} 54. Re3+
{[%clk 0:00:28]} 54... Kf4 {[%clk 0:01:32.9]} 55. Re1 {[%clk 0:00:29]} 55... Rc2
{[%clk 0:01:34.2]} 56. Rd1 {[%clk 0:00:26.7]} 56... e4 {[%clk 0:01:31.8]} 57.
Be3+ {[%clk 0:00:23.8]} 57... Ke5 {[%clk 0:01:32.6]} 58. Bd4+ {[%clk 0:00:24.8]}
58... Ke6 {[%clk 0:01:33.8]} 59. Bc5 {[%clk 0:00:25.9]} 59... Bd5 {[%clk
0:01:34.9]} 60. Re1 {[%clk 0:00:26.4]} 60... f5 {[%clk 0:01:34.5]} 61. gxf5+
{[%clk 0:00:26.7]} 61... Kxf5 {[%clk 0:01:36.4]} 62. Rd1 {[%clk 0:00:28.1]}
62... Be6 {[%clk 0:01:36.9]} 63. Rd8 {[%clk 0:00:28.1]} 63... g4 {[%clk
0:01:35.2]} 64. Rf8+ {[%clk 0:00:27.8]} 64... Ke5 {[%clk 0:01:35.8]} 65. hxg4
{[%clk 0:00:28.2]} 65... Bxg4 {[%clk 0:01:37.7]} 66. Rh8 {[%clk 0:00:28.8]}
66... h3 {[%clk 0:01:38.5]} 67. Kg3 {[%clk 0:00:29.9]} 67... Bf5 {[%clk
0:01:38.5]} 68. Re8+ {[%clk 0:00:30]} 68... Kd5 {[%clk 0:01:38.9]} 69. Rd8+
{[%clk 0:00:31]} 69... Kc4 {[%clk 0:01:34.1]} 70. Rh8 {[%clk 0:00:31.7]} 70...
Rc3+ {[%clk 0:01:34.6]} 71. Kf4 {[%clk 0:00:32.4]} 71... Rf3+ {[%clk 0:01:35.4]}
72. Ke5 {[%clk 0:00:33.5]} 72... Kd3 {[%clk 0:01:32.9]} 73. Rh4 {[%clk
0:00:33.5]} 73... Ke2 {[%clk 0:01:32.8]} 74. Rh8 {[%clk 0:00:33.8]} 74... Kf1
{[%clk 0:01:30.4]} 75. Be3 {[%clk 0:00:32.2]} 75... Bd7 {[%clk 0:01:20.2]} 76.
Rh7 {[%clk 0:00:30.6]} 76... Bc6 {[%clk 0:01:20.8]} 77. Rh8 {[%clk 0:00:29.3]}
77... Kg2 {[%clk 0:01:19.3]} 78. Rg8+ {[%clk 0:00:30.1]} 78... Kh1 {[%clk
0:01:20]} 79. Rg7 {[%clk 0:00:28]} 79... Rf8 {[%clk 0:01:18]} 80. Rg6 {[%clk
0:00:27.1]} 80... Bb5 {[%clk 0:01:14]} 81. Kxe4 {[%clk 0:00:25.9]} 81... Bc6+
{[%clk 0:01:12.1]} 82. Ke5 {[%clk 0:00:26.3]} 82... Bf3 {[%clk 0:01:13.1]} 83.
Bc5 {[%clk 0:00:23.3]} 83... Rh8 {[%clk 0:01:12.7]} 84. Kf4 {[%clk 0:00:23.6]}
84... Bg2 {[%clk 0:01:13.9]} 85. Kg3 {[%clk 0:00:24.4]} 85... Rd8 {[%clk
0:01:12.2]} 86. f4 {[%clk 0:00:24.5]} 86... Rd3+ {[%clk 0:01:13.4]} 87. Kh4
{[%clk 0:00:25.2]} 87... Rf3 {[%clk 0:01:11.5]} 88. Kg4 {[%clk 0:00:26]} 88...
h2 {[%clk 0:01:11.8]} 89. f5 {[%clk 0:00:26.6]} 89... Rf1 {[%clk 0:01:12.8]} 90.
f6 {[%clk 0:00:26.6]} 90... Be4 {[%clk 0:01:13.4]} 91. Rh6 {[%clk 0:00:27.1]}
91... Kg2 {[%clk 0:01:13.9]} 92. Kg5 {[%clk 0:00:19.8]} 92... h1=Q {[%clk
0:01:10.3]} 93. Rxh1 {[%clk 0:00:19.6]} 93... Kxh1 {[%clk 0:01:12.2]} 94. Be7
{[%clk 0:00:19.9]} 94... Kg2 {[%clk 0:01:13.4]} 95. Kh6 {[%clk 0:00:20.6]} 95...
Bd5 {[%clk 0:01:14.5]} 96. Kg7 {[%clk 0:00:21.3]} 96... Kh3 {[%clk 0:01:15.4]}
0-1

[Event "*** Titled Tuesday Blitz"]
[Site "Chess.com"]
[Date "2019.07.02"]
[Round "4"]
[White "Blitzstream"]
[Black "Micki-taryan"]
[Result "0-1"]
[WhiteElo "2782"]
[BlackElo "2961"]
[TimeControl "180+2"]
[EndTime "13:47:48 PDT"]
[Termination "Micki-taryan won by resignation"]

1. d4 {[%clk 0:03:01.9]} 1... Nf6 {[%clk 0:03:01.2]} 2. Bg5 {[%clk 0:03:02.2]}
2... e6 {[%clk 0:02:55.1]} 3. e4 {[%clk 0:03:02.6]} 3... h6 {[%clk 0:02:56.4]}
4. Bxf6 {[%clk 0:03:02.9]} 4... Qxf6 {[%clk 0:02:58.3]} 5. c3 {[%clk 0:03:04.3]}
5... d6 {[%clk 0:02:58.9]} 6. Bd3 {[%clk 0:03:05.2]} 6... Nd7 {[%clk 0:02:59.8]}
7. Ne2 {[%clk 0:03:06.5]} 7... Qd8 {[%clk 0:02:57.7]} 8. O-O {[%clk 0:03:06.2]}
8... g6 {[%clk 0:02:58.6]} 9. f4 {[%clk 0:03:05.4]} 9... Bg7 {[%clk 0:02:59.7]}
10. f5 {[%clk 0:03:04]} 10... exf5 {[%clk 0:02:57.5]} 11. exf5 {[%clk
0:03:04.1]} 11... g5 {[%clk 0:02:59.1]} 12. Ng3 {[%clk 0:02:52.1]} 12... Nf6
{[%clk 0:03:00.4]} 13. Re1+ {[%clk 0:02:52.3]} 13... Kf8 {[%clk 0:03:01.3]} 14.
Nh5 {[%clk 0:02:46.2]} 14... c5 {[%clk 0:02:53.5]} 15. Nd2 {[%clk 0:02:23]}
15... cxd4 {[%clk 0:02:53.9]} 16. Nxg7 {[%clk 0:02:18.2]} 16... Kxg7 {[%clk
0:02:53.2]} 17. cxd4 {[%clk 0:01:57.3]} 17... Qb6 {[%clk 0:02:54]} 18. Nb3
{[%clk 0:01:56.5]} 18... Bd7 {[%clk 0:02:54.6]} 19. Qd2 {[%clk 0:01:51.3]} 19...
a5 {[%clk 0:02:54.2]} 20. Qf2 {[%clk 0:01:39.9]} 20... a4 {[%clk 0:02:54.2]} 21.
Nc1 {[%clk 0:01:40.1]} 21... Rhe8 {[%clk 0:02:50.3]} 22. Rd1 {[%clk 0:01:30.7]}
22... Ng4 {[%clk 0:02:49.8]} 23. f6+ {[%clk 0:01:31.7]} 23... Kf8 {[%clk
0:02:48.3]} 24. Qg3 {[%clk 0:01:28.8]} 24... Qxd4+ {[%clk 0:02:48.6]} 0-1

[Event "*** Titled Tuesday Blitz"]
[Site "Chess.com"]
[Date "2019.07.02"]
[Round "4"]
[White "StephenDedalus83"]
[Black "Alex_Molchanov"]
[Result "1-0"]
[WhiteElo "2806"]
[BlackElo "2571"]
[TimeControl "180+2"]
[EndTime "13:48:03 PDT"]
[Termination "StephenDedalus83 won by checkmate"]

1. e4 {[%clk 0:02:54.9]} 1... c6 {[%clk 0:03:00.7]} 2. d4 {[%clk 0:02:55.2]}
2... d5 {[%clk 0:03:02.6]} 3. e5 {[%clk 0:02:56.1]} 3... Bf5 {[%clk 0:03:03.8]}
4. h4 {[%clk 0:02:57.1]} 4... h5 {[%clk 0:03:04]} 5. Bd3 {[%clk 0:02:58.2]} 5...
Bxd3 {[%clk 0:03:05.5]} 6. Qxd3 {[%clk 0:02:59.6]} 6... e6 {[%clk 0:03:07.1]} 7.
Bg5 {[%clk 0:03:00.1]} 7... Be7 {[%clk 0:03:08.7]} 8. Nf3 {[%clk 0:03:00.5]}
8... Nh6 {[%clk 0:03:10.3]} 9. Nc3 {[%clk 0:03:01.5]} 9... Nf5 {[%clk
0:03:10.4]} 10. Ne2 {[%clk 0:03:02.3]} 10... c5 {[%clk 0:03:11.9]} 11. c3 {[%clk
0:03:03.2]} 11... cxd4 {[%clk 0:03:10.4]} 12. cxd4 {[%clk 0:03:03.7]} 12... Qa5+
{[%clk 0:03:09.5]} 13. Kf1 {[%clk 0:03:04.5]} 13... Qa6 {[%clk 0:03:10.7]} 14.
Qd2 {[%clk 0:03:02.5]} 14... Nc6 {[%clk 0:03:11.4]} 15. Bxe7 {[%clk 0:03:02.6]}
15... Ncxe7 {[%clk 0:03:08.9]} 16. g3 {[%clk 0:03:02.4]} 16... Rc8 {[%clk
0:03:08]} 17. Kg2 {[%clk 0:03:03.3]} 17... O-O {[%clk 0:02:59]} 18. Nf4 {[%clk
0:03:03.2]} 18... g6 {[%clk 0:02:58.1]} 19. b3 {[%clk 0:02:59.3]} 19... Qb6
{[%clk 0:02:52.7]} 20. Rhd1 {[%clk 0:02:52.7]} 20... Rc6 {[%clk 0:02:53.6]} 21.
Nxh5 {[%clk 0:02:47.2]} 21... gxh5 {[%clk 0:02:51.1]} 22. Qg5+ {[%clk
0:02:48.5]} 22... Ng7 {[%clk 0:02:50.8]} 23. g4 {[%clk 0:02:33]} 23... hxg4
{[%clk 0:02:50]} 24. Nh2 {[%clk 0:02:34]} 24... Nf5 {[%clk 0:02:45]} 25. Nxg4
{[%clk 0:02:33.9]} 25... Rfc8 {[%clk 0:02:46.4]} 26. h5 {[%clk 0:02:29.5]} 26...
Qd8 {[%clk 0:02:05.3]} 27. Nf6+ {[%clk 0:02:27.9]} 27... Kh8 {[%clk 0:02:06.6]}
28. h6 {[%clk 0:02:26]} 28... Ne8 {[%clk 0:02:07.5]} 29. Qg8# {[%clk 0:02:26.5]}
1-0